[Event "Torneo Nuevo Centro. Jornada 10"]
[Site "Chess.com"]
[Date "2020.08.21"]
[Round "7"]
[White "Bercaru, Vlad Ionut"]
[Black "Ursariu, Nikolas Victor"]
[Result "1-0"]
[WhiteElo "1754"]
[BlackElo "1142"]
[TimeControl "180+2"]
[EndTime "11:49:37 PDT"]
[Termination "Victoria de Rata29 por tiempo"]

1. d4 {[%clk 0:03:01.9]} 1... d5 {[%clk 0:03:00.4]} 2. c4 {[%clk 0:03:01.3]}
2... Nf6 {[%clk 0:02:59.4]} 3. Nc3 {[%clk 0:03:00.4]} 3... Nc6 {[%clk
0:02:58.4]} 4. e3 {[%clk 0:02:54.9]} 4... Bf5 {[%clk 0:02:56.2]} 5. Bd3 {[%clk
0:02:52.2]} 5... Bg6 {[%clk 0:02:54]} 6. Nf3 {[%clk 0:02:48.2]} 6... e6 {[%clk
0:02:50.6]} 7. cxd5 {[%clk 0:02:48.4]} 7... exd5 {[%clk 0:02:48.9]} 8. Bxg6
{[%clk 0:02:36.7]} 8... hxg6 {[%clk 0:02:48.8]} 9. Bd2 {[%clk 0:02:31.9]} 9...
Bd6 {[%clk 0:02:45.9]} 10. h3 {[%clk 0:02:30.9]} 10... Qd7 {[%clk 0:02:43.5]}
11. Qe2 {[%clk 0:02:21.4]} 11... O-O-O {[%clk 0:02:37]} 12. a3 {[%clk
0:02:17.2]} 12... Be7 {[%clk 0:02:32]} 13. b4 {[%clk 0:02:12.6]} 13... Qe6
{[%clk 0:02:28.3]} 14. b5 {[%clk 0:02:01.8]} 14... Nb8 {[%clk 0:02:21.3]} 15. a4
{[%clk 0:01:56.6]} 15... Rde8 {[%clk 0:02:16.6]} 16. Rb1 {[%clk 0:01:44.1]}
16... Bd6 {[%clk 0:02:06.2]} 17. a5 {[%clk 0:01:40.1]} 17... b6 {[%clk
0:02:03.4]} 18. axb6 {[%clk 0:01:28.9]} 18... axb6 {[%clk 0:02:05.3]} 19. Rc1
{[%clk 0:01:22.2]} 19... Nbd7 {[%clk 0:02:00.3]} 20. Ng5 {[%clk 0:01:07.6]}
20... Qe7 {[%clk 0:01:55]} 21. Nf3 {[%clk 0:01:04.3]} 21... Bb4 {[%clk
0:01:41.4]} 22. Na4 {[%clk 0:00:47.9]} 22... Bxd2+ {[%clk 0:01:39.2]} 23. Nxd2
{[%clk 0:00:46.5]} 23... Qb4 {[%clk 0:01:33.1]} 24. Nc3 {[%clk 0:00:42.8]} 24...
Qe7 {[%clk 0:01:17.2]} 25. Qd1 {[%clk 0:00:40.8]} 25... Qf8 {[%clk 0:01:08.9]}
26. Qa4 {[%clk 0:00:39.1]} 26... Nb8 {[%clk 0:01:02.3]} 27. Qa8 {[%clk
0:00:37.6]} 27... Re7 {[%clk 0:00:57.3]} 28. Na4 {[%clk 0:00:33.6]} 28... Kd7
{[%clk 0:00:48.4]} 29. Qb7 {[%clk 0:00:25.1]} 29... Qe8 {[%clk 0:00:45]} 30.
Nxb6+ {[%clk 0:00:23.6]} 30... Kd6 {[%clk 0:00:40.1]} 31. Na4 {[%clk 0:00:15.6]}
31... Rxe3+ {[%clk 0:00:33.8]} 32. fxe3 {[%clk 0:00:15.4]} 32... Qxe3+ {[%clk
0:00:35.7]} 33. Kd1 {[%clk 0:00:16.3]} 33... Qxd4 {[%clk 0:00:22.2]} 34. Qxc7+
{[%clk 0:00:16.3]} 34... Ke6 {[%clk 0:00:21.4]} 35. Nc5+ {[%clk 0:00:13.4]}
35... Kf5 {[%clk 0:00:20.6]} 36. Rf1+ {[%clk 0:00:13.3]} 36... Kg5 {[%clk
0:00:20.2]} 37. Qg3+ {[%clk 0:00:13.6]} 37... Kh5 {[%clk 0:00:18.8]} 38. Qf3+
{[%clk 0:00:14.3]} 38... Kg5 {[%clk 0:00:18]} 39. h4+ {[%clk 0:00:14.2]} 39...
Kh6 {[%clk 0:00:18.1]} 40. Qf4+ {[%clk 0:00:14.7]} 40... Kh7 {[%clk 0:00:18.1]}
41. Rf2 {[%clk 0:00:15.7]} 41... Qxf4 {[%clk 0:00:14.2]} 42. Rxf4 {[%clk
0:00:17]} 42... Re8 {[%clk 0:00:11.2]} 43. Rf1 {[%clk 0:00:17.2]} 43... Ne4
{[%clk 0:00:09.4]} 44. Ndxe4 {[%clk 0:00:17]} 44... dxe4 {[%clk 0:00:11.3]} 45.
Re1 {[%clk 0:00:17.6]} 45... f5 {[%clk 0:00:10.6]} 46. g4 {[%clk 0:00:17.5]}
46... Kh6 {[%clk 0:00:12.5]} 47. gxf5 {[%clk 0:00:17.9]} 47... gxf5 {[%clk
0:00:14.1]} 48. Ke2 {[%clk 0:00:19.1]} 48... g6 {[%clk 0:00:13.5]} 49. Rg1
{[%clk 0:00:19.5]} 49... Rg8 {[%clk 0:00:10.8]} 50. Ke3 {[%clk 0:00:20.2]} 50...
Kh5 {[%clk 0:00:03.4]} 51. Ne6 {[%clk 0:00:17.4]} 1

[Event "Torneo Nuevo Centro. Jornada 10"]
[Site "Chess.com"]
[Date "2020.08.21"]
[Round "7"]
[White "Cantero Navarro, Antonio"]
[Black "Valmaña Cantó, Jaime"]
[Result "0-1"]
[WhiteElo "1943"]
[BlackElo "2355"]
[TimeControl "180+2"]
[EndTime "11:49:56 PDT"]
[Termination "Victoria de barberbirborbur por abandono"]

1. e4 {[%clk 0:02:52.7]} 1... c5 {[%clk 0:02:58.8]} 2. Nf3 {[%clk 0:02:44]} 2...
Nc6 {[%clk 0:02:59.6]} 3. Bb5 {[%clk 0:02:43.5]} 3... Nf6 {[%clk 0:02:59]} 4. e5
{[%clk 0:02:36.6]} 4... Nd5 {[%clk 0:02:58.5]} 5. Nc3 {[%clk 0:02:33.8]} 5...
Nc7 {[%clk 0:02:58.2]} 6. Bxc6 {[%clk 0:02:34.2]} 6... dxc6 {[%clk 0:03:00.1]}
7. O-O {[%clk 0:02:34.9]} 7... g6 {[%clk 0:02:57.7]} 8. Ne4 {[%clk 0:02:34.8]}
8... b6 {[%clk 0:02:56.7]} 9. Re1 {[%clk 0:02:35.4]} 9... Bg7 {[%clk 0:02:57.7]}
10. Nf6+ {[%clk 0:02:32.4]} 10... Kf8 {[%clk 0:02:48.2]} 11. Ne4 {[%clk
0:02:30.4]} 11... Ne6 {[%clk 0:02:45.2]} 12. d3 {[%clk 0:02:27.4]} 12... h6
{[%clk 0:02:42.9]} 13. Bd2 {[%clk 0:02:13.5]} 13... Kg8 {[%clk 0:02:41]} 14. h3
{[%clk 0:02:10.4]} 14... Kh7 {[%clk 0:02:42]} 15. Ng3 {[%clk 0:02:08.1]} 15...
Nd4 {[%clk 0:02:40.5]} 16. c3 {[%clk 0:01:56.2]} 16... Nxf3+ {[%clk 0:02:31.8]}
17. Qxf3 {[%clk 0:01:58.1]} 17... Be6 {[%clk 0:02:32.1]} 18. h4 {[%clk
0:01:23.8]} 18... Qd7 {[%clk 0:02:28.7]} 19. h5 {[%clk 0:01:19.4]} 19... Rad8
{[%clk 0:02:27.2]} 20. Re3 {[%clk 0:01:01.8]} 20... Rhf8 {[%clk 0:02:13.1]} 21.
Rae1 {[%clk 0:01:00.8]} 21... a5 {[%clk 0:01:42.6]} 22. c4 {[%clk 0:01:00.4]}
22... a4 {[%clk 0:01:39.5]} 23. Bc3 {[%clk 0:01:00.3]} 23... b5 {[%clk
0:01:38.4]} 24. b3 {[%clk 0:00:57.5]} 24... Bg4 {[%clk 0:00:54.7]} 25. Qe4
{[%clk 0:00:55.3]} 25... Qe6 {[%clk 0:00:47.9]} 26. f3 {[%clk 0:00:38.4]} 26...
Bf5 {[%clk 0:00:47.7]} 27. Nxf5 {[%clk 0:00:38.1]} 27... gxf5 {[%clk 0:00:46.6]}
28. Qh4 {[%clk 0:00:26]} 28... Rg8 {[%clk 0:00:45.7]} 29. f4 {[%clk 0:00:23.7]}
29... Bh8 {[%clk 0:00:44.6]} 30. Rf1 {[%clk 0:00:19.6]} 30... Rg4 {[%clk
0:00:43.8]} 31. Qh2 {[%clk 0:00:20]} 31... Rdg8 {[%clk 0:00:29.4]} 32. Rf2
{[%clk 0:00:19.2]} 32... Qd7 {[%clk 0:00:17.8]} 33. Kf1 {[%clk 0:00:17.5]} 33...
e6 {[%clk 0:00:18.6]} 34. Ke1 {[%clk 0:00:17.7]} 34... Bg7 {[%clk 0:00:20]} 35.
Kd2 {[%clk 0:00:17.7]} 35... Bf8 {[%clk 0:00:21.4]} 36. Kc2 {[%clk 0:00:18]}
36... Be7 {[%clk 0:00:22.8]} 37. Rfe2 {[%clk 0:00:16.5]} 37... axb3+ {[%clk
0:00:14.6]} 38. axb3 {[%clk 0:00:17]} 38... Qa7 {[%clk 0:00:15.4]} 39. Kb2
{[%clk 0:00:15.3]} 39... Ra8 {[%clk 0:00:15.4]} 40. Kc2 {[%clk 0:00:15.7]} 40...
Qa2+ {[%clk 0:00:14.9]} 41. Bb2 {[%clk 0:00:16.6]} 41... Ra3 {[%clk 0:00:11.2]}
42. d4 {[%clk 0:00:16.2]} 42... bxc4 {[%clk 0:00:11.4]} 43. bxc4 {[%clk
0:00:15.3]} 43... Qxc4+ {[%clk 0:00:11]} 44. Kb1 {[%clk 0:00:16]} 44... Rxe3
{[%clk 0:00:10.2]} 45. Rxe3 {[%clk 0:00:16.8]} 45... cxd4 {[%clk 0:00:11.1]} 46.
Rg3 {[%clk 0:00:15.6]} 46... Qf1+ {[%clk 0:00:09.2]} 47. Ka2 {[%clk 0:00:15.4]}
47... Qxf4 {[%clk 0:00:11.1]} 48. Rh3 {[%clk 0:00:14.1]} 48... Qxh2 {[%clk
0:00:10.4]} 49. Rxh2 {[%clk 0:00:14.9]} 49... c5 {[%clk 0:00:11.5]} 50. Kb3
{[%clk 0:00:15.3]} 50... Bg5 {[%clk 0:00:05.9]} 51. Kc4 {[%clk 0:00:15.5]} 51...
Bf4 {[%clk 0:00:07.2]} 52. Rh3 {[%clk 0:00:14.7]} 52... Rxg2 {[%clk 0:00:07.8]}
53. Ba3 {[%clk 0:00:15.3]} 53... Rc2+ {[%clk 0:00:09.4]} 54. Kb5 {[%clk
0:00:15.5]} 54... Rc3 {[%clk 0:00:10]} 55. Rxc3 {[%clk 0:00:15.1]} 55... dxc3
{[%clk 0:00:11.9]} 56. Kxc5 {[%clk 0:00:14.1]} 56... c2 {[%clk 0:00:13.4]} 57.
Kd6 {[%clk 0:00:14.8]} 57... c1=Q {[%clk 0:00:13.4]} 0

[Event "Torneo Nuevo Centro. Jornada 10"]
[Site "Chess.com"]
[Date "2020.08.21"]
[Round "7"]
[White "Hassomal Daswani, Birjkumar"]
[Black "Donate Peris, Jose Manuel"]
[Result "1/2-1/2"]
[WhiteElo "1802"]
[BlackElo "1540"]
[TimeControl "180+2"]
[EndTime "11:49:56 PDT"]
[Termination "Partida en tablas por material insuficiente"]

1. e4 {[%clk 0:02:57.1]} 1... e6 {[%clk 0:03:00.5]} 2. d4 {[%clk 0:02:56]} 2...
d5 {[%clk 0:03:01.4]} 3. e5 {[%clk 0:02:26.7]} 3... c5 {[%clk 0:03:02]} 4. c3
{[%clk 0:02:27.3]} 4... Bd7 {[%clk 0:03:01.6]} 5. Nf3 {[%clk 0:02:27.6]} 5...
Qb6 {[%clk 0:03:00.7]} 6. Be2 {[%clk 0:02:24.2]} 6... Bb5 {[%clk 0:03:00.3]} 7.
O-O {[%clk 0:02:06.7]} 7... Bxe2 {[%clk 0:02:59.2]} 8. Qxe2 {[%clk 0:02:06.9]}
8... cxd4 {[%clk 0:02:57.8]} 9. cxd4 {[%clk 0:02:07.2]} 9... Nc6 {[%clk
0:02:54.2]} 10. Nc3 {[%clk 0:02:07.7]} 10... Nge7 {[%clk 0:02:50.7]} 11. Be3
{[%clk 0:02:05.5]} 11... Nf5 {[%clk 0:02:50.1]} 12. Rad1 {[%clk 0:02:03.8]}
12... Nxe3 {[%clk 0:02:45.7]} 13. fxe3 {[%clk 0:02:04.2]} 13... Be7 {[%clk
0:02:41.5]} 14. Kh1 {[%clk 0:02:01.2]} 14... O-O {[%clk 0:02:40.6]} 15. h4
{[%clk 0:02:01.8]} 15... Rac8 {[%clk 0:02:31.4]} 16. Ng5 {[%clk 0:01:53.9]}
16... h6 {[%clk 0:02:27.8]} 17. Nf3 {[%clk 0:01:50.9]} 17... Na5 {[%clk
0:02:06.8]} 18. g4 {[%clk 0:01:48.7]} 18... Nc4 {[%clk 0:02:07.2]} 19. b3 {[%clk
0:01:46]} 19... Nxe5 {[%clk 0:01:59.6]} 20. Nxe5 {[%clk 0:01:37.5]} 20... Rxc3
{[%clk 0:01:57.7]} 21. Nd7 {[%clk 0:01:38]} 21... Qd6 {[%clk 0:01:50.4]} 22.
Nxf8 {[%clk 0:01:38.3]} 22... Bxh4 {[%clk 0:01:49.5]} 23. Ng6 {[%clk 0:01:29.7]}
23... fxg6 {[%clk 0:01:48.1]} 24. Qf3 {[%clk 0:01:26.8]} 24... Bf6 {[%clk
0:01:41.1]} 25. Rf2 {[%clk 0:01:25.2]} 25... Qe7 {[%clk 0:01:28]} 26. Kg2 {[%clk
0:01:20.7]} 26... Rc8 {[%clk 0:01:21.3]} 27. Rff1 {[%clk 0:01:20]} 27... Rf8
{[%clk 0:01:20.9]} 28. Qe2 {[%clk 0:01:19.5]} 28... Rc8 {[%clk 0:01:15.6]} 29.
Rc1 {[%clk 0:01:19.9]} 29... Re8 {[%clk 0:01:11.4]} 30. Qc2 {[%clk 0:01:19.6]}
30... e5 {[%clk 0:01:09.3]} 31. Qxg6 {[%clk 0:01:18.1]} 31... exd4 {[%clk
0:01:07.9]} 32. exd4 {[%clk 0:01:09.8]} 32... Qe2+ {[%clk 0:01:06.2]} 33. Rf2
{[%clk 0:01:10]} 33... Qe4+ {[%clk 0:01:03]} 34. Qxe4 {[%clk 0:01:09.8]} 34...
Rxe4 {[%clk 0:01:02.6]} 35. Rc7 {[%clk 0:01:09.6]} 35... Rxg4+ {[%clk
0:01:01.9]} 36. Kf3 {[%clk 0:01:10.4]} 36... Rxd4 {[%clk 0:01:01.1]} 37. Rxb7
{[%clk 0:01:11.1]} 37... Rd3+ {[%clk 0:00:58.2]} 38. Ke2 {[%clk 0:01:10.9]}
38... Rc3 {[%clk 0:00:56]} 39. Kd2 {[%clk 0:01:11.6]} 39... d4 {[%clk 0:00:49]}
40. Rxa7 {[%clk 0:01:11]} 40... Rh3 {[%clk 0:00:45.9]} 41. Kc2 {[%clk
0:01:08.3]} 41... d3+ {[%clk 0:00:45.7]} 42. Kd1 {[%clk 0:01:08.8]} 42... Bg5
{[%clk 0:00:40.7]} 43. Ra8+ {[%clk 0:01:07.1]} 43... Kh7 {[%clk 0:00:39.8]} 44.
Rf1 {[%clk 0:01:05.8]} 44... d2 {[%clk 0:00:38.7]} 45. Rd8 {[%clk 0:01:04.1]}
45... Rc3 {[%clk 0:00:37.3]} 46. Rxd2 {[%clk 0:01:04.1]} 46... Bxd2 {[%clk
0:00:37.1]} 47. Kxd2 {[%clk 0:01:05.1]} 47... Rh3 {[%clk 0:00:35]} 48. b4 {[%clk
0:01:03.1]} 48... Rh2+ {[%clk 0:00:35.5]} 49. Kc3 {[%clk 0:01:03.9]} 49... Rxa2
{[%clk 0:00:35.4]} 50. b5 {[%clk 0:01:04.8]} 50... Ra8 {[%clk 0:00:33.3]} 51. b6
{[%clk 0:01:05.6]} 51... Rb8 {[%clk 0:00:32]} 52. Rb1 {[%clk 0:01:06.9]} 52...
g5 {[%clk 0:00:31.1]} 53. Kc4 {[%clk 0:01:08.2]} 53... g4 {[%clk 0:00:31.8]} 54.
Kc5 {[%clk 0:01:09.3]} 54... g3 {[%clk 0:00:28.9]} 55. Kc6 {[%clk 0:01:09.6]}
55... Kg6 {[%clk 0:00:28.1]} 56. Rg1 {[%clk 0:01:09.7]} 56... Kf5 {[%clk
0:00:23.1]} 57. Rxg3 {[%clk 0:01:10.2]} 57... h5 {[%clk 0:00:23.9]} 58. Kc7
{[%clk 0:01:08.8]} 58... Rh8 {[%clk 0:00:22]} 59. b7 {[%clk 0:01:09.4]} 59... h4
{[%clk 0:00:21.6]} 60. Rg1 {[%clk 0:01:07.5]} 60... Kf4 {[%clk 0:00:21.4]} 61.
b8=Q {[%clk 0:00:59.8]} 61... Rxb8 {[%clk 0:00:22]} 62. Kxb8 {[%clk 0:01:00.6]}
62... h3 {[%clk 0:00:22.6]} 63. Kc7 {[%clk 0:01:01.2]} 63... h2 {[%clk
0:00:22.8]} 64. Rf1+ {[%clk 0:00:59.8]} 64... Kg3 {[%clk 0:00:23.4]} 65. Kd6
{[%clk 0:00:57.1]} 65... Kg2 {[%clk 0:00:24.2]} 66. Rd1 {[%clk 0:00:57.2]} 66...
h1=Q {[%clk 0:00:25]} 67. Rxh1 {[%clk 0:00:57.5]} 67... Kxh1 {[%clk 0:00:25.7]}
1/2-1

[Event "Torneo Nuevo Centro. Jornada 10"]
[Site "Chess.com"]
[Date "2020.08.21"]
[Round "7"]
[White "Soliva Ruiz, Ramon"]
[Black "Gracia Calvo, Andrés"]
[Result "1-0"]
[WhiteElo "1528"]
[BlackElo "1790"]
[TimeControl "180+2"]
[EndTime "11:49:59 PDT"]
[Termination "Victoria de rasoru por jaque mate"]

1. d4 {[%clk 0:03:01.9]} 1... d5 {[%clk 0:03:00.7]} 2. Bf4 {[%clk 0:03:02.7]}
2... c5 {[%clk 0:03:00.9]} 3. e3 {[%clk 0:03:02.5]} 3... Qb6 {[%clk 0:02:59.8]}
4. Nc3 {[%clk 0:02:56.3]} 4... Nf6 {[%clk 0:02:55.6]} 5. dxc5 {[%clk 0:02:45.7]}
5... Qxc5 {[%clk 0:02:50.9]} 6. Nf3 {[%clk 0:02:35.3]} 6... Nc6 {[%clk
0:02:49.2]} 7. Nb5 {[%clk 0:02:25.5]} 7... Bf5 {[%clk 0:01:34.3]} 8. Bd3 {[%clk
0:02:02.5]} 8... Bxd3 {[%clk 0:01:31.1]} 9. Qxd3 {[%clk 0:02:03.2]} 9... Qb4+
{[%clk 0:01:21.6]} 10. c3 {[%clk 0:02:03.6]} 10... Qxb2 {[%clk 0:01:18]} 11. O-O
{[%clk 0:02:04.1]} 11... Ne4 {[%clk 0:00:27.9]} 12. Nc7+ {[%clk 0:01:54.4]}
12... Kd7 {[%clk 0:00:26.5]} 13. Nxa8 {[%clk 0:01:54.9]} 13... Nxc3 {[%clk
0:00:21.3]} 14. Nc7 {[%clk 0:01:12.5]} 14... e5 {[%clk 0:00:18.7]} 15. Bxe5
{[%clk 0:01:04.1]} 15... Nxe5 {[%clk 0:00:17.1]} 16. Nxe5+ {[%clk 0:01:04.8]}
16... Kxc7 {[%clk 0:00:15.3]} 17. Nxf7 {[%clk 0:01:05.4]} 17... Rg8 {[%clk
0:00:15]} 18. Ne5 {[%clk 0:00:57.9]} 18... Bd6 {[%clk 0:00:12.1]} 19. Nf3 {[%clk
0:00:54.7]} 19... b5 {[%clk 0:00:07.9]} 20. Rfc1 {[%clk 0:00:52.5]} 20... b4
{[%clk 0:00:08.3]} 21. Rab1 {[%clk 0:00:43.9]} 21... Qa3 {[%clk 0:00:07.4]} 22.
Rb3 {[%clk 0:00:36.1]} 22... Qxa2 {[%clk 0:00:05.9]} 23. Rbxc3+ {[%clk
0:00:34.9]} 23... bxc3 {[%clk 0:00:06.3]} 24. Qxc3+ {[%clk 0:00:35.7]} 24... Kd7
{[%clk 0:00:07.2]} 25. Qc6+ {[%clk 0:00:29.3]} 25... Ke7 {[%clk 0:00:06.4]} 26.
Qb7+ {[%clk 0:00:24.6]} 26... Kf6 {[%clk 0:00:03.7]} 27. Qc6 {[%clk 0:00:19]}
27... Rd8 {[%clk 0:00:04.8]} 28. h3 {[%clk 0:00:17.7]} 28... Qb2 {[%clk
0:00:05.2]} 29. Nd4 {[%clk 0:00:16.8]} 29... a5 {[%clk 0:00:03.8]} 30. Qc3
{[%clk 0:00:15.3]} 30... Qa2 {[%clk 0:00:03.3]} 31. Qc2 {[%clk 0:00:13.9]} 31...
Qa3 {[%clk 0:00:03.6]} 32. Qe2 {[%clk 0:00:13.2]} 32... a4 {[%clk 0:00:04.3]}
33. Rc6 {[%clk 0:00:12.6]} 33... Ke7 {[%clk 0:00:04.3]} 34. f3 {[%clk
0:00:09.8]} 34... Kd7 {[%clk 0:00:05]} 35. Rc2 {[%clk 0:00:09.4]} 35... Qa1+
{[%clk 0:00:04.7]} 36. Kf2 {[%clk 0:00:09.5]} 36... Rb8 {[%clk 0:00:05.5]} 37.
Nf5 {[%clk 0:00:05.5]} 37... a3 {[%clk 0:00:05.9]} 38. Nxd6 {[%clk 0:00:06.2]}
38... Kxd6 {[%clk 0:00:06.8]} 39. Qa6+ {[%clk 0:00:06]} 39... Ke7 {[%clk
0:00:06.6]} 40. Qa7+ {[%clk 0:00:05.6]} 40... Ke6 {[%clk 0:00:07.3]} 41. Qxb8
{[%clk 0:00:06.3]} 41... a2 {[%clk 0:00:08.2]} 42. Qe8+ {[%clk 0:00:06.7]} 42...
Kd6 {[%clk 0:00:08.8]} 43. Qf8+ {[%clk 0:00:07.2]} 43... Ke6 {[%clk 0:00:09.5]}
44. Qe8+ {[%clk 0:00:07.6]} 44... Kd6 {[%clk 0:00:10.3]} 45. Qc6+ {[%clk
0:00:08.1]} 45... Ke7 {[%clk 0:00:10.7]} 46. Qc5+ {[%clk 0:00:08.2]} 46... Kf6
{[%clk 0:00:11.5]} 47. Qxd5 {[%clk 0:00:06.9]} 47... Qb1 {[%clk 0:00:11.4]} 48.
Qxa2 {[%clk 0:00:07.3]} 48... Qh1 {[%clk 0:00:10.3]} 49. Qb2+ {[%clk 0:00:06.5]}
49... Kg6 {[%clk 0:00:08.7]} 50. Rc6+ {[%clk 0:00:07.4]} 50... Kh5 {[%clk
0:00:09.2]} 51. Qb5+ {[%clk 0:00:08.3]} 51... g5 {[%clk 0:00:10]} 52. Qf5 {[%clk
0:00:06.4]} 52... h6 {[%clk 0:00:05.1]} 53. Qg6+ {[%clk 0:00:06]} 53... Kh4
{[%clk 0:00:05.3]} 54. Qxh6# {[%clk 0:00:07]} 1

[Event "Torneo Nuevo Centro. Jornada 10"]
[Site "Chess.com"]
[Date "2020.08.21"]
[Round "7"]
[White "Gil López, Alejandro"]
[Black "De Nacimiento Montano, Antonio"]
[Result "1-0"]
[WhiteElo "2209"]
[BlackElo "1854"]
[TimeControl "180+2"]
[EndTime "11:50:03 PDT"]
[Termination "Victoria de AglVal0313 por abandono"]

1. e4 {[%clk 0:03:01]} 1... c5 {[%clk 0:03:00.8]} 2. Nf3 {[%clk 0:03:01.6]} 2...
Nc6 {[%clk 0:02:52.7]} 3. Bc4 {[%clk 0:03:02.4]} 3... e6 {[%clk 0:02:48.7]} 4.
c3 {[%clk 0:03:03.6]} 4... Nf6 {[%clk 0:02:47.6]} 5. e5 {[%clk 0:03:04.2]} 5...
Nd5 {[%clk 0:02:48.8]} 6. d4 {[%clk 0:03:01.8]} 6... Be7 {[%clk 0:02:35.8]} 7.
dxc5 {[%clk 0:02:56.8]} 7... Bxc5 {[%clk 0:01:52]} 8. Bxd5 {[%clk 0:02:56.8]}
8... exd5 {[%clk 0:01:53.9]} 9. Qxd5 {[%clk 0:02:57.5]} 9... Qb6 {[%clk
0:01:55.5]} 10. O-O {[%clk 0:02:54.1]} 10... O-O {[%clk 0:01:56.5]} 11. a4
{[%clk 0:02:41.5]} 11... a5 {[%clk 0:01:54.1]} 12. Bf4 {[%clk 0:02:41.7]} 12...
Ne7 {[%clk 0:01:45.3]} 13. Qe4 {[%clk 0:02:41.7]} 13... d5 {[%clk 0:01:35]} 14.
exd6 {[%clk 0:02:37.6]} 14... Bxd6 {[%clk 0:01:33.6]} 15. Bxd6 {[%clk
0:02:38.4]} 15... Qxd6 {[%clk 0:01:35.5]} 16. Re1 {[%clk 0:02:36.9]} 16... Ng6
{[%clk 0:01:31.8]} 17. Na3 {[%clk 0:02:38]} 17... Qc5 {[%clk 0:01:06.5]} 18. Nb5
{[%clk 0:02:32.7]} 18... Bf5 {[%clk 0:01:02]} 19. Qxb7 {[%clk 0:02:25.6]} 19...
Nf4 {[%clk 0:00:45.5]} 20. Re5 {[%clk 0:02:21.4]} 20... Qc8 {[%clk 0:00:23.2]}
21. Qxc8 {[%clk 0:02:22.7]} 21... Bxc8 {[%clk 0:00:25.1]} 22. Rd1 {[%clk
0:02:23.5]} 22... Be6 {[%clk 0:00:26.1]} 23. Nfd4 {[%clk 0:02:21.2]} 23... Bc4
{[%clk 0:00:22.8]} 24. Rc5 {[%clk 0:02:12.8]} 24... Bxb5 {[%clk 0:00:17.9]} 25.
Nxb5 {[%clk 0:02:13.9]} 25... Rad8 {[%clk 0:00:18.1]} 26. Rxd8 {[%clk
0:02:04.9]} 26... Rxd8 {[%clk 0:00:20]} 27. Nd4 {[%clk 0:02:05.2]} 27... g6
{[%clk 0:00:16.3]} 28. g3 {[%clk 0:01:58.3]} 28... Nd3 {[%clk 0:00:14.6]} 29.
Rb5 {[%clk 0:01:56.7]} 29... Re8 {[%clk 0:00:14.4]} 30. b4 {[%clk 0:01:45.6]}
30... Re1+ {[%clk 0:00:12.9]} 31. Kg2 {[%clk 0:01:45.7]} 31... Ra1 {[%clk
0:00:12.8]} 32. Rxa5 {[%clk 0:01:42.3]} 32... Ne1+ {[%clk 0:00:14]} 33. Kh3
{[%clk 0:01:41.5]} 33... Kg7 {[%clk 0:00:15.2]} 34. f4 {[%clk 0:01:30.4]} 34...
f5 {[%clk 0:00:16.2]} 35. Ra7+ {[%clk 0:01:30.2]} 35... Kh6 {[%clk 0:00:16.4]}
36. Nf3 {[%clk 0:01:24.8]} 36... Nxf3 {[%clk 0:00:16.3]} 37. Kg2 {[%clk
0:00:58.9]} 37... Nd2 {[%clk 0:00:16.7]} 38. a5 {[%clk 0:00:58.3]} 38... Ra2
{[%clk 0:00:13.9]} 39. b5 {[%clk 0:00:33.5]} 39... Nb3+ {[%clk 0:00:13.1]} 40.
Kf3 {[%clk 0:00:25.7]} 40... Rxa5 {[%clk 0:00:13.9]} 41. Rxa5 {[%clk 0:00:25.4]}
41... Nxa5 {[%clk 0:00:15.1]} 42. Ke3 {[%clk 0:00:19.5]} 42... Kg7 {[%clk
0:00:13.7]} 43. Kd4 {[%clk 0:00:20.6]} 43... Kf7 {[%clk 0:00:11.6]} 44. Kc5
{[%clk 0:00:20.3]} 44... Ke6 {[%clk 0:00:11.6]} 45. Kb6 {[%clk 0:00:20.7]} 45...
Nc4+ {[%clk 0:00:12.6]} 46. Kc7 {[%clk 0:00:19.4]} 46... Kd5 {[%clk 0:00:10]}
47. b6 {[%clk 0:00:16.7]} 47... Na5 {[%clk 0:00:06.2]} 48. b7 {[%clk 0:00:08]}
48... Nxb7 {[%clk 0:00:05.7]} 49. Kxb7 {[%clk 0:00:09.9]} 49... Kc4 {[%clk
0:00:07.6]} 50. Kc7 {[%clk 0:00:10.8]} 50... Kxc3 {[%clk 0:00:09.5]} 51. Kd7
{[%clk 0:00:12.5]} 51... Kd3 {[%clk 0:00:10.9]} 52. Ke6 {[%clk 0:00:13.9]} 52...
Ke4 {[%clk 0:00:10.5]} 53. Kf6 {[%clk 0:00:13.5]} 53... Kf3 {[%clk 0:00:09.1]}
54. Kg7 {[%clk 0:00:14.6]} 54... Kg2 {[%clk 0:00:09.9]} 55. Kxh7 {[%clk
0:00:15.8]} 55... Kxh2 {[%clk 0:00:11.2]} 56. Kxg6 {[%clk 0:00:16.7]} 56... Kxg3
{[%clk 0:00:11.9]} 57. Kxf5 {[%clk 0:00:17.9]} 57... Kh4 {[%clk 0:00:13]} 58.
Kg6 {[%clk 0:00:19]} 1